fUST/lending_fUST_20250707
["ID","MTS","AMOUNT","RATE_DAILY","PERIOD"]
[370075892,1751874717424,-460.0,0.00020368,2]
[370075893,1751874717435,-460.0,0.00020368,2]
[370075894,1751874717444,-460.0,0.00020368,2]
[370075895,1751874717455,-853.89,0.00020368,2]
[370075896,1751874717464,-460.0,0.00020368,2]
[370075897,1751874717474,-653.05,0.00020368,2]
[370075898,1751874717484,-1467.27,0.00020368,2]
[370075899,1751874717494,-460.0,0.00020368,2]
[370075900,1751874717508,-460.0,0.00020368,2]
[370075901,1751874717517,-460.0,0.00020368,2]
[370075902,1751874717527,-460.0,0.00020368,2]
[370075903,1751874717536,-460.0,0.00020368,2]
[370075904,1751874717546,-558.67,0.00020368,2]
[370075905,1751874717555,-460.0,0.00020368,2]
[370075906,1751874717565,-1277.64,0.00020368,2]
[370075907,1751874717574,-875.52,0.00020368,2]
[370075908,1751874717584,-460.0,0.00020368,2]
[370075909,1751874717593,-1859.47,0.00020368,2]
[370075910,1751874717603,-460.0,0.00020368,2]
[370075911,1751874717612,-460.0,0.00020368,2]
[370075912,1751874717622,-667.38,0.00020368,2]
[370075913,1751874717633,-460.0,0.00020368,2]
[370075914,1751874717642,-462.72,0.00020368,2]
[370075915,1751874717652,-460.0,0.00020368,2]
[370075916,1751874717661,-476.25,0.00020369,2]
[370075917,1751874717670,-460.0,0.00020369,2]
[370075918,1751874717679,-460.0,0.00020369,2]
[370075919,1751874717689,-460.0,0.00020369,2]
[370075920,1751874717698,-514.3,0.00020369,2]
[370075921,1751874717707,-460.0,0.00020369,2]
[370075922,1751874717716,-487.81,0.00020369,2]
[370075923,1751874717726,-1189.7,0.00020369,2]
[370075924,1751874717736,-460.0,0.00020369,2]
[370075925,1751874717746,-1405.47,0.00020369,2]
[370075926,1751874717755,-470.64,0.00020369,2]
[370075927,1751874717764,-460.0,0.00020369,2]
[370075928,1751874717774,-1319.88,0.00020369,2]
[370075929,1751874717784,-760.73,0.00020369,2]
[370075930,1751874717793,-1793.32,0.00020369,2]
[370075931,1751874717802,-460.0,0.00020369,2]
[370075932,1751874717812,-460.0,0.00020369,2]
[370075933,1751874717822,-460.0,0.00020369,2]
[370075934,1751874717833,-801.02,0.00020369,2]
[370075935,1751874717842,-484.77,0.00020369,2]
[370075936,1751874717851,-460.0,0.00020369,2]
[370075937,1751874717861,-485.52,0.00020369,2]
[370075938,1751874717870,-9292.4,0.00020369,2]
[370075939,1751874717880,-752.99,0.00020369,2]
[370075940,1751874717889,-2399.68,0.00020369,2]
[370075941,1751874717898,-460.0,0.00020369,2]
[370075942,1751874717908,-1940.76,0.00020369,2]
[370075943,1751874717917,-460.0,0.00020369,2]
[370075944,1751874717927,-460.0,0.00020369,2]
[370075945,1751874717937,-1002.05,0.00020369,2]
[370075946,1751874717947,-1775.53,0.00020369,2]
[370075947,1751874717956,-833.33,0.0002037,2]
[370075948,1751874717965,-460.0,0.0002037,2]
[370075949,1751874717975,-479.16,0.0002037,2]
[370075950,1751874717984,-460.0,0.0002037,2]
[370075951,1751874717994,-460.0,0.0002037,2]
[370075952,1751874718004,-460.0,0.0002037,2]
[370075953,1751874718014,-789.93,0.0002037,2]
[370075954,1751874718024,-460.0,0.0002037,2]
[370075955,1751874718034,-460.0,0.0002037,2]
[370075956,1751874718044,-460.0,0.0002037,2]
[370075957,1751874718053,-460.0,0.0002037,2]
[370075958,1751874718063,-460.0,0.0002037,2]
[370075959,1751874718072,-460.0,0.0002037,2]
[370075960,1751874718083,-460.0,0.0002037,2]
[370075961,1751874718092,-460.0,0.0002037,2]
[370075962,1751874718102,-1358.8,0.0002037,2]
[370075963,1751874718111,-460.0,0.0002037,2]
[370075964,1751874718123,-460.0,0.0002037,2]
[370075965,1751874718134,-460.0,0.0002037,2]
[370075966,1751874718144,-474.49,0.0002037,2]
[370075967,1751874718153,-1067.63,0.0002037,2]
[370075968,1751874718163,-484.4,0.0002037,2]
[370075969,1751874718172,-636.05,0.0002037,2]
[370075970,1751874718183,-460.0,0.0002037,2]
[370075971,1751874718195,-460.0,0.0002037,2]
[370075972,1751874718204,-460.0,0.0002037,2]
[370075973,1751874718219,-460.0,0.0002037,2]
[370075974,1751874718229,-460.0,0.0002037,2]
[370075975,1751874718240,-460.0,0.0002037,2]
[370075976,1751874718252,-460.0,0.0002037,2]
[370075977,1751874718262,-460.0,0.0002037,2]
[370075978,1751874718273,-460.0,0.0002037,2]
[370075979,1751874718282,-460.0,0.0002037,2]
[370075980,1751874718291,-460.0,0.0002037,2]
[370075981,1751874718301,-460.0,0.0002037,2]
[370075982,1751874718310,-460.0,0.0002037,2]
[370075983,1751874718320,-460.0,0.0002037,2]
[370075984,1751874718330,-460.0,0.0002037,2]
[370075985,1751874718339,-460.0,0.0002037,2]
[370075986,1751874718349,-1217.52,0.0002037,2]
[370075987,1751874718359,-460.0,0.0002037,2]
[370075988,1751874718368,-598.99,0.0002037,2]
[370075989,1751874718377,-460.0,0.0002037,2]
[370075990,1751874718387,-460.0,0.0002037,2]
[370075991,1751874718396,-460.0,0.0002037,2]
[370075992,1751874718405,-460.0,0.0002037,2]
[370075993,1751874718415,-460.0,0.0002037,2]
[370075994,1751874718425,-460.44,0.0002037,2]
[370075995,1751874718435,-460.0,0.0002037,2]
[370075996,1751874718445,-460.0,0.0002037,2]
[370075997,1751874718454,-460.0,0.0002037,2]
[370075998,1751874718464,-460.0,0.0002037,2]
[370075999,1751874718473,-460.0,0.0002037,2]
[370076000,1751874718483,-460.0,0.0002037,2]
[370076001,1751874718493,-460.0,0.0002037,2]
[370076002,1751874718503,-568.83,0.0002037,2]
[370076003,1751874718516,-460.0,0.0002037,2]
[370076004,1751874718526,-460.0,0.0002037,2]
[370076005,1751874718537,-460.0,0.0002037,2]
[370076006,1751874718547,-1142.62,0.0002037,2]
[370076007,1751874718557,-3875.46,0.0002037,2]
[370076008,1751874718568,-201.20635067,0.0002037,2]
[370076009,1751874718578,-460.0,0.0002037,2]
[370076010,1751874718588,-484.93,0.0002037,2]
[370076011,1751874718597,-460.0,0.0002037,2]
[370076012,1751874718607,-460.0,0.0002037,2]
[370076013,1751874718616,-661.69,0.0002037,2]
[370076014,1751874718626,-606.51054467,0.0002037,2]
[370076015,1751874718635,-460.0,0.0002037,2]
[370076016,1751874718645,-460.0,0.0002037,2]
[370076017,1751874718655,-460.0,0.0002037,2]
[370076018,1751874718664,-460.0,0.0002037,2]
[370076019,1751874718674,-460.0,0.0002037,2]
[370076020,1751874718685,-3246.94,0.0002037,2]
[370076021,1751874718695,-503.41,0.0002037,2]
[370076022,1751874718705,-499.04,0.0002037,2]
[370076023,1751874718715,-460.0,0.0002037,2]
[370076024,1751874718725,-460.0,0.0002037,2]
[370076025,1751874718736,-2096.65,0.0002037,2]
[370076026,1751874718746,-460.0,0.0002037,2]
[370076027,1751874718757,-503.05,0.0002037,2]
[370076028,1751874718769,-460.0,0.0002037,2]
[370076029,1751874718779,-151.0,0.00020372,2]
[370076030,1751874718788,-151.0,0.00020372,2]
[370076031,1751874718797,-151.0,0.00020372,2]
[370076032,1751874718808,-460.0,0.00020372,2]
[370076033,1751874718817,-460.0,0.00020372,2]
[370076034,1751874718827,-1143.07,0.00020372,2]
[370076035,1751874718837,-460.0,0.00020372,2]
[370076036,1751874718847,-460.0,0.00020372,2]
[370076037,1751874718856,-460.0,0.00020372,2]
[370076038,1751874718866,-460.0,0.00020372,2]
[370076039,1751874718875,-460.0,0.00020372,2]
[370076040,1751874718885,-460.0,0.00020372,2]
[370076041,1751874718895,-460.0,0.00020372,2]
[370076042,1751874718904,-460.0,0.00020372,2]
[370076043,1751874718915,-460.0,0.00020372,2]
[370076044,1751874718926,-904.25,0.00020372,2]
[370076045,1751874718936,-324.76,0.00020372,2]
[370076046,1751874718945,-460.0,0.00020372,2]
[370076047,1751874718956,-460.0,0.00020372,2]
[370076048,1751874718966,-460.0,0.00020372,2]
[370076049,1751874718979,-460.0,0.00020372,2]
[370076050,1751874718992,-460.0,0.00020372,2]
[370076051,1751874719003,-460.0,0.00020372,2]
[370076052,1751874719014,-200.0,0.00020372,2]
[370076053,1751874719023,-460.0,0.00020373,2]
[370076054,1751874719033,-460.0,0.00020373,2]
[370076055,1751874719045,-460.0,0.00020373,2]
[370076056,1751874719054,-471.71,0.00020373,2]
[370076057,1751874719064,-460.0,0.00020373,2]
[370076058,1751874719074,-460.0,0.00020373,2]
[370076059,1751874719085,-460.0,0.00020373,2]
[370076060,1751874719095,-460.0,0.00020373,2]
[370076061,1751874719104,-1952.44731812,0.00020383,3]
[370076062,1751874719114,-151.0,0.00020473,2]
[370076063,1751874719124,-150.0,0.00020638,2]
[370076064,1751874719134,-460.0,0.00020639,2]
[370076065,1751874719144,-460.0,0.00020639,2]
[370076066,1751874719154,-516.51,0.00020639,2]
[370076067,1751874719163,-502.13,0.00020639,2]
[370076068,1751874719174,-460.0,0.00020639,2]
[370076069,1751874719184,-5847.9,0.00020639,2]
[370076070,1751874719195,-460.0,0.00020639,2]
[370076071,1751874719205,-460.0,0.0002064,2]
[370076072,1751874719219,-462.21,0.0002064,2]
[370076073,1751874719229,-460.0,0.0002064,2]
[370076074,1751874719238,-3915.6,0.0002064,2]
[370076075,1751874719248,-598.2,0.0002064,2]
[370076076,1751874719259,-2220.21,0.0002064,2]
[370076077,1751874719268,-596.4,0.0002064,2]
[370076078,1751874719278,-791.73,0.0002064,2]
[370076079,1751874719289,-460.0,0.0002064,2]
[370076080,1751874719298,-460.0,0.0002064,2]
[370076081,1751874719308,-500.96,0.0002064,2]
[370076082,1751874719318,-460.0,0.0002064,2]
[370076083,1751874719327,-908.31,0.0002064,2]
[370076084,1751874719337,-3498.14,0.0002064,2]
[370076085,1751874719348,-460.0,0.0002064,2]
[370076086,1751874719359,-7001.38,0.0002064,2]
[370076087,1751874719369,-460.0,0.0002064,2]
[370076088,1751874719381,-802.05,0.0002064,2]
[370076089,1751874719392,-460.0,0.0002064,2]
[370076090,1751874719401,-2963.68,0.0002064,2]
[370076091,1751874719412,-960.04,0.0002064,2]
[370076092,1751874719422,-515.59,0.0002064,2]
[370076093,1751874719432,-1138.73,0.0002064,2]
[370076094,1751874719442,-460.0,0.0002064,2]
[370076095,1751874719452,-460.0,0.00020641,2]
[370076096,1751874719462,-460.0,0.00020641,2]
[370076097,1751874719472,-460.0,0.00020641,2]
[370076098,1751874719483,-460.0,0.00020641,2]
[370076099,1751874719492,-460.0,0.00020641,2]
[370076100,1751874719503,-460.0,0.00020641,2]
[370076101,1751874719513,-460.0,0.00020641,2]
[370076102,1751874719523,-460.0,0.00020641,2]
[370076103,1751874719533,-460.0,0.00020641,2]
[370076104,1751874719543,-460.0,0.00020641,2]
[370076105,1751874719554,-460.0,0.00020641,2]
[370076106,1751874719564,-460.0,0.00020641,2]
[370076107,1751874719575,-460.0,0.00020641,2]
[370076108,1751874719585,-460.0,0.00020641,2]
[370076109,1751874719595,-351.34419932,0.00020641,2]
[370076110,1751874719606,-528.0972067,0.00020641,2]
[370076111,1751874719616,-460.0,0.00020641,2]
[370076112,1751874719627,-460.0,0.00020641,2]
[370076113,1751874719636,-460.0,0.00020641,2]
[370076114,1751874719647,-460.0,0.00020641,2]
[370076115,1751874719657,-460.0,0.00020641,2]
[370076116,1751874719668,-460.0,0.00020641,2]
[370076117,1751874719678,-460.0,0.00020641,2]
[370076118,1751874719688,-800.94,0.00020641,2]
[370076119,1751874719699,-460.0,0.00020641,2]
[370076120,1751874719710,-1010.27,0.00020641,2]
[370076121,1751874719720,-460.0,0.00020642,2]
[370076122,1751874719731,-460.0,0.00020642,2]
[370076123,1751874719741,-545.09,0.00020642,2]
[370076124,1751874719752,-460.0,0.00020642,2]
[370076125,1751874719764,-460.0,0.00020642,2]
[370076126,1751874719775,-460.0,0.00020642,2]
[370076127,1751874719785,-460.0,0.00020642,2]
[370076128,1751874719795,-460.0,0.00020642,2]
[370076129,1751874719805,-595.03,0.00020642,2]
[370076130,1751874719816,-460.0,0.00020642,2]
[370076131,1751874719828,-460.0,0.00020642,2]
[370076132,1751874719839,-460.0,0.00020642,2]
[370076133,1751874719849,-460.0,0.00020642,2]
[370076134,1751874719859,-853.89,0.00020642,2]
[370076135,1751874719869,-460.0,0.00020642,2]
[370076136,1751874719880,-653.05,0.00020642,2]
[370076137,1751874719890,-1467.27,0.00020642,2]
[370076138,1751874719900,-460.0,0.00020642,2]
[370076139,1751874719910,-460.0,0.00020642,2]
[370076140,1751874719920,-460.0,0.00020642,2]
[370076141,1751874719930,-460.0,0.00020642,2]
[370076142,1751874719940,-460.0,0.00020642,2]
[370076143,1751874719950,-558.67,0.00020642,2]
[370076144,1751874719960,-460.0,0.00020642,2]
[370076145,1751874719970,-1277.64,0.00020642,2]
[370076146,1751874719980,-875.52,0.00020642,2]
[370076147,1751874719991,-460.0,0.00020642,2]
[370076148,1751874720001,-1859.47,0.00020642,2]
[370076149,1751874720011,-460.0,0.00020642,2]
[370076150,1751874720021,-460.0,0.00020642,2]
[370076151,1751874720031,-667.38,0.00020642,2]
[370076152,1751874720041,-460.0,0.00020642,2]
[370076153,1751874720051,-462.72,0.00020642,2]
[370076154,1751874720061,-460.0,0.00020642,2]
[370076155,1751874720071,-476.25,0.00020643,2]
[370076156,1751874720081,-460.0,0.00020643,2]
[370076157,1751874720091,-460.0,0.00020643,2]
[370076158,1751874720101,-460.0,0.00020643,2]
[370076159,1751874720111,-514.3,0.00020643,2]
[370076160,1751874720122,-460.0,0.00020643,2]
[370076161,1751874720132,-487.81,0.00020643,2]
[370076162,1751874720142,-1189.7,0.00020643,2]
[370076163,1751874720153,-460.0,0.00020643,2]
[370076164,1751874720163,-1405.47,0.00020643,2]
[370076165,1751874720173,-470.64,0.00020643,2]
[370076166,1751874720183,-460.0,0.00020643,2]
[370076167,1751874720192,-1319.88,0.00020643,2]
[370076168,1751874720203,-760.73,0.00020643,2]
[370076169,1751874720216,-1793.32,0.00020643,2]
[370076170,1751874720226,-460.0,0.00020643,2]
[370076171,1751874720237,-460.0,0.00020643,2]
[370076172,1751874720247,-460.0,0.00020643,2]
[370076173,1751874720258,-801.02,0.00020643,2]
[370076174,1751874720454,-484.77,0.00020643,2]
[370076175,1751874720467,-460.0,0.00020643,2]
[370076176,1751874720478,-485.52,0.00020643,2]
[370076177,1751874720488,-9292.4,0.00020643,2]
[370076178,1751874720500,-752.99,0.00020643,2]
[370076179,1751874720511,-2399.68,0.00020643,2]
[370076180,1751874720522,-460.0,0.00020643,2]
[370076181,1751874720533,-1940.76,0.00020643,2]
[370076182,1751874720544,-460.0,0.00020643,2]
[370076183,1751874720555,-460.0,0.00020643,2]
[370076184,1751874720565,-1002.05,0.00020643,2]
[370076185,1751874720577,-1775.53,0.00020643,2]
[370076186,1751874720588,-833.33,0.00020644,2]
[370076187,1751874720599,-460.0,0.00020644,2]
[370076188,1751874720608,-479.16,0.00020644,2]
[370076189,1751874720619,-460.0,0.00020644,2]
[370076190,1751874720628,-460.0,0.00020644,2]
[370076191,1751874720639,-460.0,0.00020644,2]
[370076192,1751874720650,-789.93,0.00020644,2]
[370076193,1751874720660,-460.0,0.00020644,2]
[370076194,1751874720670,-460.0,0.00020644,2]
[370076195,1751874720679,-521.54,0.00020644,2]
[370076196,1751874720689,-460.0,0.00020644,2]
[370076197,1751874720699,-460.0,0.00020644,2]
[370076198,1751874720709,-460.0,0.00020644,2]
[370076199,1751874720720,-460.0,0.00020644,2]
[370076200,1751874720731,-460.0,0.00020644,2]
[370076201,1751874720740,-1358.8,0.00020644,2]
[370076202,1751874720750,-460.0,0.00020644,2]
[370076203,1751874720760,-460.0,0.00020644,2]
[370076204,1751874720771,-460.0,0.00020644,2]
[370076205,1751874720780,-474.49,0.00020644,2]
[370076206,1751874720790,-1067.63,0.00020644,2]
[370076207,1751874720799,-484.4,0.00020644,2]
[370076208,1751874720809,-636.05,0.00020644,2]
[370076209,1751874720819,-487.31328264,0.00020644,2]
[370076210,1751874720828,-460.0,0.00020644,2]
[370076211,1751874720838,-460.0,0.00020644,2]
[370076212,1751874720847,-346.61493168,0.00020644,2]
[370076213,1751874720857,-460.0,0.00020644,2]
[370076214,1751874720866,-568.37560958,0.00020644,2]
[370076215,1751874720876,-460.0,0.00020644,2]
[370076216,1751874720886,-460.0,0.00020644,2]
[370076217,1751874720895,-460.0,0.00020644,2]
[370076218,1751874720904,-460.0,0.00020644,2]
[370076219,1751874720913,-460.0,0.00020644,2]
[370076220,1751874720923,-460.0,0.00020644,2]
[370076221,1751874720932,-460.0,0.00020644,2]
[370076222,1751874720941,-460.0,0.00020644,2]
[370076223,1751874720951,-460.0,0.00020644,2]
[370076224,1751874720961,-1217.52,0.00020644,2]
[370076225,1751874720971,-460.0,0.00020644,2]
[370076226,1751874720981,-598.99,0.00020644,2]
[370076227,1751874720992,-460.0,0.00020644,2]
[370076228,1751874721003,-460.0,0.00020644,2]
[370076229,1751874721013,-460.0,0.00020644,2]
[370076230,1751874721024,-460.0,0.00020644,2]
[370076231,1751874721035,-460.0,0.00020644,2]
[370076232,1751874721047,-460.44,0.00020644,2]
[370076233,1751874721057,-460.0,0.00020644,2]
[370076234,1751874721068,-460.0,0.00020644,2]
[370076235,1751874721077,-460.0,0.00020644,2]
[370076236,1751874721087,-460.0,0.00020644,2]
[370076237,1751874721100,-460.0,0.00020644,2]
[370076238,1751874721110,-460.0,0.00020644,2]
[370076239,1751874721119,-460.0,0.00020644,2]
[370076240,1751874721129,-568.83,0.00020644,2]
[370076241,1751874721139,-460.0,0.00020644,2]
[370076242,1751874721148,-460.0,0.00020644,2]
[370076243,1751874721158,-460.0,0.00020644,2]
[370076244,1751874721169,-1142.62,0.00020644,2]
[370076245,1751874721180,-3875.46,0.00020644,2]
[370076246,1751874721191,-460.0,0.00020644,2]
[370076247,1751874721201,-484.93,0.00020644,2]
[370076248,1751874721213,-460.0,0.00020644,2]
[370076249,1751874721223,-460.0,0.00020644,2]
[370076250,1751874721234,-661.69,0.00020644,2]
[370076251,1751874721244,-460.0,0.00020644,2]
[370076252,1751874721255,-403.35520557,0.00020644,2]
[370076253,1751874721265,-460.0,0.00020644,2]
[370076254,1751874721274,-460.0,0.00020644,2]
[370076255,1751874721284,-460.0,0.00020644,2]
[370076256,1751874721295,-3246.94,0.00020644,2]
[370076257,1751874721304,-503.41,0.00020644,2]
[370076258,1751874721314,-499.04,0.00020644,2]
[370076259,1751874721324,-460.0,0.00020644,2]
[370076260,1751874721334,-460.0,0.00020644,2]
[370076261,1751874721343,-2096.65,0.00020644,2]
[370076262,1751874721353,-460.0,0.00020644,2]
[370076263,1751874721362,-503.05,0.00020644,2]
[370076264,1751874721372,-460.0,0.00020644,2]
[370076265,1751874721382,-200.0,0.00020646,2]
[370076266,1751874721391,-460.0,0.00020646,2]
[370076267,1751874721401,-460.0,0.00020646,2]
[370076268,1751874721410,-1143.07,0.00020646,2]
[370076269,1751874721419,-460.0,0.00020646,2]
[370076270,1751874721429,-460.0,0.00020646,2]
[370076271,1751874721439,-460.0,0.00020646,2]
[370076272,1751874721448,-460.0,0.00020646,2]
[370076273,1751874721458,-460.0,0.00020646,2]
[370076274,1751874721468,-460.0,0.00020646,2]
[370076275,1751874721477,-507.38002004,0.00020646,2]
[370076276,1751874721487,-460.0,0.00020646,2]
[370076277,1751874721496,-460.0,0.00020646,2]
[370076278,1751874721506,-904.25,0.00020646,2]
[370076279,1751874721516,-460.0,0.00020646,2]
[370076280,1751874721525,-460.0,0.00020646,2]
[370076281,1751874721535,-460.0,0.00020646,2]
[370076282,1751874721545,-460.0,0.00020646,2]
[370076283,1751874721555,-460.0,0.00020646,2]
[370076284,1751874721565,-460.0,0.00020646,2]
[370076285,1751874721576,-460.0,0.00020647,2]
[370076286,1751874721585,-460.0,0.00020647,2]
[370076287,1751874721595,-460.0,0.00020647,2]
[370076288,1751874721605,-471.71,0.00020647,2]
[370076289,1751874721615,-460.0,0.00020647,2]
[370076290,1751874721624,-460.0,0.00020647,2]
[370076291,1751874721635,-583.57,0.00020647,2]
[370076292,1751874721644,-460.0,0.00020647,2]
[370076293,1751874721654,-151.0,0.00020648,2]
[370076294,1751874721664,-517.499024,0.00020648,2]
[370076295,1751874721673,-517.499024,0.00020648,2]
[370076296,1751874721683,-151.0,0.00020648,2]
[370076297,1751874721694,-151.0,0.00020649,2]
[370076298,1751874721703,-189.261253,0.00020649,2]
[370076299,1751874721713,-189.261259,0.00020649,2]
[370076300,1751874721722,-453.52849,0.00020649,2]
[370076301,1751874721732,-1952.44731812,0.00020659,3]
[370076302,1751874721742,-1016.20869616,0.0002066,2]
[370076303,1751874721751,-2740.94,0.000207,2]
[370076304,1751874721761,-808.07560296,0.00020712,2]
[370076305,1751874721771,-4220.1822831,0.00020862,2]
[370076306,1751874721780,-1000.0,0.0002088,2]
[370076307,1751874721790,-178.54144095,0.00020883,2]
[370076308,1751874721799,-652.365,0.00020883,2]
[370076309,1751874721809,-460.0,0.00020913,2]
[370076310,1751874721819,-460.0,0.00020913,2]
[370076311,1751874721829,-516.51,0.00020913,2]
[370076312,1751874721839,-502.13,0.00020913,2]
[370076313,1751874721848,-460.0,0.00020913,2]
[370076314,1751874721858,-5847.9,0.00020913,2]
[370076315,1751874721868,-460.0,0.00020913,2]
[370076316,1751874721877,-462.21,0.00020914,2]
[370076317,1751874721887,-460.0,0.00020914,2]
[370076318,1751874721897,-3915.6,0.00020914,2]
[370076319,1751874721906,-598.2,0.00020914,2]
[370076320,1751874721915,-2220.21,0.00020914,2]
[370076321,1751874721924,-596.4,0.00020914,2]
[370076322,1751874721934,-791.73,0.00020914,2]
[370076323,1751874721943,-460.0,0.00020914,2]
[370076324,1751874721953,-460.0,0.00020914,2]
[370076325,1751874721963,-500.96,0.00020914,2]
[370076326,1751874721973,-460.0,0.00020914,2]
[370076327,1751874721983,-908.31,0.00020914,2]
[370076328,1751874721992,-3498.14,0.00020914,2]
[370076329,1751874722002,-460.0,0.00020914,2]
[370076330,1751874722012,-7001.38,0.00020914,2]
[370076331,1751874722021,-460.0,0.00020914,2]
[370076332,1751874722030,-802.05,0.00020914,2]
[370076333,1751874722040,-460.0,0.00020914,2]
[370076334,1751874722050,-2963.68,0.00020914,2]
[370076335,1751874722059,-960.04,0.00020914,2]
[370076336,1751874722070,-515.59,0.00020914,2]
[370076337,1751874722079,-1138.73,0.00020914,2]
[370076338,1751874722088,-460.0,0.00020914,2]
[370076339,1751874722098,-460.0,0.00020915,2]
[370076340,1751874722107,-460.0,0.00020915,2]
[370076341,1751874722117,-460.0,0.00020915,2]
[370076342,1751874722126,-460.0,0.00020915,2]
[370076343,1751874722136,-460.0,0.00020915,2]
[370076344,1751874722147,-460.0,0.00020915,2]
[370076345,1751874722157,-460.0,0.00020915,2]
[370076346,1751874722167,-460.0,0.00020915,2]
[370076347,1751874722176,-460.0,0.00020915,2]
[370076348,1751874722186,-460.0,0.00020915,2]
[370076349,1751874722196,-460.0,0.00020915,2]
[370076350,1751874722206,-460.0,0.00020915,2]
[370076351,1751874722221,-460.0,0.00020915,2]
[370076352,1751874722231,-163.3546841,0.00020915,2]
[370076353,1751874722240,-460.0,0.00020915,2]
[370076354,1751874722252,-460.0,0.00020915,2]
[370076355,1751874722262,-460.0,0.00020915,2]
[370076356,1751874722272,-460.0,0.00020915,2]
[370076357,1751874722282,-460.0,0.00020915,2]
[370076358,1751874722291,-460.0,0.00020915,2]
[370076359,1751874722302,-800.94,0.00020915,2]
[370076360,1751874722317,-460.0,0.00020915,2]
[370076361,1751874722327,-1010.27,0.00020915,2]
[370076362,1751874722338,-460.0,0.00020916,2]
[370076363,1751874722349,-460.0,0.00020916,2]
[370076364,1751874722360,-545.09,0.00020916,2]
[370076365,1751874722370,-460.0,0.00020916,2]
[370076366,1751874722390,-460.0,0.00020916,2]
[370076367,1751874722415,-460.0,0.00020916,2]
[370076368,1751874722426,-460.0,0.00020916,2]
[370076369,1751874722437,-460.0,0.00020916,2]
[370076370,1751874722447,-595.03,0.00020916,2]
[370076371,1751874722457,-460.0,0.00020916,2]
[370076372,1751874722467,-460.0,0.00020916,2]
[370076373,1751874722478,-460.0,0.00020916,2]
[370076374,1751874722489,-460.0,0.00020916,2]
[370076375,1751874722499,-853.89,0.00020916,2]
[370076376,1751874722509,-460.0,0.00020916,2]
[370076377,1751874722519,-653.05,0.00020916,2]
[370076378,1751874722530,-1467.27,0.00020916,2]
[370076379,1751874722541,-460.0,0.00020916,2]
[370076380,1751874722551,-460.0,0.00020916,2]
[370076381,1751874722563,-603.9,0.00020916,2]
[370076382,1751874722573,-460.0,0.00020916,2]
[370076383,1751874722583,-460.0,0.00020916,2]
[370076384,1751874722595,-558.67,0.00020916,2]
[370076385,1751874722606,-460.0,0.00020916,2]
[370076386,1751874722616,-1277.64,0.00020916,2]
[370076387,1751874722627,-875.52,0.00020916,2]
[370076388,1751874722639,-152.98454036,0.00020916,2]
[370076389,1751874722649,-1859.47,0.00020916,2]
[370076390,1751874722659,-460.0,0.00020916,2]
[370076391,1751874722669,-460.0,0.00020916,2]